bitfinex/quotes_BTCUSD_20250829
["timestamp","ask_amount","ask_price","bid_price","bid_amount"]
[1756478362232,0.02549715,108830.0,108820.0,0.38249984]
[1756478362846,0.02749715,108830.0,108820.0,0.38249984]
[1756478363046,0.21438,108830.0,108820.0,0.1966801]
[1756478363266,0.30902795,108830.0,108820.0,0.22332042]
[1756478363466,0.30902793,108830.0,108820.0,0.03953068]
[1756478363684,0.52378974,108820.0,108810.0,0.31733731]
[1756478363890,1.00406022,108820.0,108800.0,0.19301469]
[1756478364106,1.09235654,108820.0,108810.0,0.13353068]
[1756478364310,1.09235654,108820.0,108810.0,0.03953068]
[1756478364311,1.09235483,108820.0,108810.0,0.03953068]
[1756478364544,1.09870757,108820.0,108810.0,0.03953068]
[1756478364748,1.09870757,108820.0,108810.0,0.31733731]
[1756478364749,0.64260371,108820.0,108810.0,0.31733731]
[1756478364953,0.64260371,108820.0,108810.0,0.13453068]
[1756478365790,0.6489596,108820.0,108810.0,0.04053068]
[1756478365995,0.6489596,108820.0,108810.0,0.34077273]
[1756478366196,0.64895965,108820.0,108810.0,0.31833731]
[1756478366399,0.55555333,108820.0,108810.0,0.32036731]
[1756478366633,0.02540765,108820.0,108810.0,0.32036731]
[1756478366855,0.02540765,108820.0,108810.0,0.34030613]
[1756478367090,0.00846992,108820.0,108810.0,0.34030613]
[1756478367297,0.00846992,108820.0,108810.0,0.87835357]
[1756478367503,8.779e-05,108830.0,108820.0,0.26732042]
[1756478367716,8.779e-05,108830.0,108820.0,0.76707154]
[1756478368123,0.01704604,108830.0,108820.0,0.78801036]
[1756478368350,0.02552516,108830.0,108820.0,0.78801036]
[1756478368553,0.02552516,108830.0,108820.0,0.9394561]
[1756478369805,0.00856691,108830.0,108820.0,0.98038217]
[1756478370516,0.00856691,108830.0,108820.0,0.98338217]
[1756478370673,0.00856691,108830.0,108820.0,0.98738217]
[1756478372554,0.02554594,108830.0,108820.0,0.53763105]
[1756478372752,0.03065594,108830.0,108820.0,0.87814703]
[1756478372971,0.37065594,108830.0,108820.0,0.32432042]
[1756478373130,0.37702246,108830.0,108820.0,0.28478974]
[1756478373334,0.56079531,108830.0,108820.0,0.32432042]
[1756478373581,0.22079531,108830.0,108820.0,0.31732042]
[1756478373792,0.22079531,108830.0,108820.0,0.03953068]
[1756478374026,0.22079531,108830.0,108820.0,0.04453068]
[1756478374214,0.22079531,108830.0,108820.0,0.32232042]
[1756478374412,0.22079531,108830.0,108820.0,0.32032042]
[1756478374645,0.22079531,108830.0,108820.0,0.13853068]
[1756478374859,0.22082826,108830.0,108820.0,0.32332042]
[1756478375024,0.56082826,108830.0,108820.0,0.13953068]
[1756478375380,0.56082826,108830.0,108820.0,0.13853068]
[1756478376144,0.64912458,108830.0,108820.0,0.13353068]
[1756478376287,1.0988757,108830.0,108820.0,0.13353068]
[1756478376497,0.64912458,108830.0,108820.0,0.03953068]
[1756478376695,0.64912458,108830.0,108820.0,0.13353068]
[1756478377800,0.65012458,108830.0,108820.0,0.13353068]
[1756478378356,0.65012365,108830.0,108820.0,0.31732042]
[1756478378764,0.37394448,108830.0,108820.0,0.36743306]
[1756478378940,0.37394448,108830.0,108820.0,0.81718418]
[1756478379790,0.37294448,108830.0,108820.0,0.81718418]
[1756478379960,0.37194448,108830.0,108820.0,0.36743306]
[1756478380167,0.37705448,108830.0,108820.0,0.36743306]
[1756478380378,0.56082733,108830.0,108820.0,0.32032042]
[1756478380572,0.56082733,108830.0,108820.0,0.097]
[1756478380775,0.56082733,108830.0,108820.0,0.13653068]
[1756478381071,1.12955477,108830.0,108820.0,0.003]
[1756478381278,0.18382352,108800.0,108790.0,0.13028068]
[1756478381485,0.18384042,108790.0,108780.0,0.20239498]
[1756478381701,0.19744527,108790.0,108780.0,0.20239498]
[1756478381899,0.73548921,108790.0,108780.0,0.20239498]
[1756478382316,0.28573809,108790.0,108780.0,0.20239498]
[1756478382527,0.28573809,108790.0,108780.0,0.3862523]
[1756478382741,0.01049135,108790.0,108780.0,0.3882823]
[1756478382960,0.19433177,108790.0,108780.0,0.47666641]
[1756478383151,0.34849135,108790.0,108780.0,0.47666641]
[1756478383629,0.34849135,108790.0,108780.0,0.92641753]
[1756478384157,0.34849135,108790.0,108780.0,0.92841753]
[1756478384358,0.34849135,108790.0,108780.0,0.85630323]
[1756478384790,0.5361221,108810.0,108800.0,0.13028068]
[1756478384994,0.64127534,108810.0,108800.0,0.13028068]
[1756478385189,0.63490809,108810.0,108800.0,0.13028068]
[1756478385415,0.64127297,108810.0,108800.0,0.13028068]
[1756478386002,0.64126992,108810.0,108800.0,0.13028068]
[1756478386205,0.64126992,108810.0,108800.0,0.13128068]
[1756478386666,0.64226992,108810.0,108800.0,0.13128068]
[1756478387215,0.44925782,108810.0,108800.0,0.34661631]
[1756478387426,0.43978144,108810.0,108800.0,0.76688532]
[1756478387627,0.43778144,108810.0,108800.0,0.76688532]
[1756478387836,0.62358807,108810.0,108800.0,0.76688532]
[1756478388236,0.43978144,108810.0,108800.0,0.76688532]
[1756478388482,0.62358807,108810.0,108800.0,0.83003474]
[1756478388752,0.62367807,108810.0,108800.0,0.37825362]
[1756478388962,0.53538175,108810.0,108800.0,0.37825362]
[1756478389166,0.34948512,108810.0,108800.0,0.83001474]
[1756478389382,0.00948512,108810.0,108800.0,0.83001474]
[1756478389587,0.00948512,108810.0,108800.0,0.83314474]
[1756478390242,0.19538175,108810.0,108800.0,0.38026362]
[1756478390401,0.19538175,108810.0,108800.0,0.3171142]
[1756478390602,0.19748175,108810.0,108800.0,0.13128068]
[1756478390805,0.19748175,108810.0,108800.0,0.09175]
[1756478391012,0.74289125,108810.0,108800.0,0.001]
[1756478391246,1.07652919,108810.0,108800.0,0.13128068]
[1756478391448,0.62677807,108810.0,108800.0,0.03953068]
[1756478391592,1.07652919,108810.0,108800.0,0.13228068]
[1756478391790,1.07652919,108810.0,108800.0,0.09375]
[1756478392000,1.08289175,108810.0,108800.0,0.13328068]
[1756478392238,1.08289175,108810.0,108800.0,0.13228068]
[1756478392596,1.08289175,108810.0,108800.0,0.09375]
[1756478392828,0.63314063,108810.0,108800.0,0.13328068]
[1756478393030,0.64910825,108810.0,108800.0,0.13128068]
[1756478393686,0.64910825,108810.0,108800.0,0.09175]
[1756478393904,0.65010825,108810.0,108800.0,0.09175]
[1756478394039,1.09985937,108810.0,108800.0,0.09175]
[1756478394241,1.18815569,108810.0,108800.0,0.001]
[1756478394478,1.09985937,108810.0,108800.0,0.001]
[1756478394825,0.66449611,108810.0,108800.0,0.09175]
[1756478395023,0.66449611,108810.0,108800.0,0.13128068]
[1756478395246,0.47432692,108810.0,108800.0,0.3171142]
[1756478395447,0.55234937,108810.0,108800.0,0.3171142]
[1756478395691,0.36854274,108810.0,108800.0,0.37442097]
[1756478395865,0.35798341,108810.0,108800.0,0.82417209]
[1756478396073,0.02647542,108810.0,108800.0,0.82730209]
[1756478396717,0.01798341,108810.0,108800.0,0.93653723]
[1756478396890,0.001,108810.0,108800.0,1.85392902]
[1756478397091,0.01438427,108820.0,108810.0,0.33502613]
[1756478397300,0.01438427,108820.0,108810.0,0.96449989]
[1756478397494,0.01438427,108820.0,108810.0,0.96650989]
[1756478397756,0.21301372,108850.0,108830.0,0.2232922]
[1756478397887,0.56788025,108850.0,108840.0,0.09075]
[1756478398089,0.56997025,108850.0,108840.0,0.27450597]
[1756478398307,0.56478091,108850.0,108840.0,0.1800605]
[1756478398511,0.56478091,108850.0,108840.0,0.36381647]
[1756478398741,0.37185331,108850.0,108840.0,0.36582647]
[1756478398899,0.03185331,108850.0,108840.0,0.81557759]
[1756478399332,0.03185331,108850.0,108840.0,0.92794273]
[1756478399538,0.02548278,108850.0,108840.0,0.92794273]
[1756478400303,0.02548278,108850.0,108840.0,0.32629579]
[1756478400518,0.21441187,108850.0,108840.0,0.6810605]
[1756478400723,1.09882844,108850.0,108840.0,0.54153068]
[1756478400931,1.09882844,108850.0,108840.0,0.63228068]
[1756478401106,1.09882844,108850.0,108840.0,0.63128068]
[1756478401313,0.64907732,108850.0,108840.0,0.63628068]
[1756478401517,0.64270819,108850.0,108840.0,0.63628068]
[1756478401722,0.62572011,108850.0,108840.0,0.63628068]
[1756478401929,0.64270496,108850.0,108840.0,0.63628068]
[1756478402276,0.64270496,108850.0,108840.0,0.6994301]
[1756478402707,0.55130864,108850.0,108840.0,0.88419607]
[1756478402915,0.36547955,108850.0,108840.0,0.88819607]
[1756478403343,0.36647955,108850.0,108840.0,0.88319607]
[1756478403480,0.36647955,108850.0,108840.0,0.87919607]
[1756478403689,0.55180864,108850.0,108840.0,0.87919607]
[1756478403937,0.55490864,108850.0,108840.0,0.63128068]
[1756478404350,0.55490864,108850.0,108840.0,0.63228068]
[1756478404597,0.64320496,108850.0,108840.0,0.54153068]
[1756478404808,1.09295608,108850.0,108840.0,0.54153068]
[1756478405010,1.09295608,108850.0,108840.0,0.63228068]
[1756478405214,1.08494098,108850.0,108840.0,0.71388597]
[1756478405609,0.63208986,108850.0,108840.0,0.81603665]
[1756478405788,0.6341915,108850.0,108840.0,0.63128068]
[1756478406014,0.6341915,108850.0,108840.0,0.81503665]
[1756478406214,0.54270518,108850.0,108840.0,0.81604665]
[1756478406632,0.54889518,108850.0,108840.0,0.63028068]
[1756478407252,0.54689518,108850.0,108840.0,0.63028068]
[1756478407386,0.54579518,108850.0,108840.0,0.81604665]
[1756478407594,0.54579518,108850.0,108840.0,0.718577]
[1756478407932,1.08594262,108850.0,108840.0,0.63028068]
[1756478408148,1.08694262,108850.0,108840.0,0.63028068]
[1756478409374,1.08694262,108850.0,108840.0,0.63128068]
[1756478409584,0.6371915,108850.0,108840.0,0.63128068]
[1756478409733,1.08494262,108850.0,108840.0,0.62203584]
[1756478409935,1.08494262,108850.0,108840.0,0.71278584]
[1756478410539,1.08394262,108850.0,108840.0,0.71278584]
[1756478410751,1.08494262,108850.0,108840.0,0.501]
[1756478411398,1.09129655,108850.0,108840.0,0.501]
[1756478412159,0.64154543,108850.0,108840.0,0.501]
[1756478412364,1.09129655,108850.0,108840.0,0.501]
[1756478413528,7.09798466,108850.0,108840.0,0.501]
[1756478413943,6.17959287,108850.0,108840.0,0.501]
[1756478414807,7.09798466,108850.0,108840.0,0.501]
[1756478415011,6.79530636,108850.0,108840.0,0.501]
[1756478415877,6.80376294,108850.0,108840.0,0.501]
[1756478416085,6.80376294,108850.0,108840.0,0.05003412]
[1756478416494,6.80376294,108850.0,108840.0,0.04903412]
[1756478416701,6.80276294,108850.0,108840.0,0.04903412]
[1756478416907,0.77813601,108850.0,108840.0,0.04903412]
[1756478417112,1.11813601,108850.0,108840.0,0.04903412]
[1756478417531,1.11822376,108850.0,108840.0,0.04903412]
[1756478418320,1.11622376,108850.0,108840.0,0.04903412]
[1756478418723,1.11722376,108850.0,108840.0,0.04903412]
[1756478419347,1.13244347,108850.0,108840.0,0.04903412]
[1756478419500,0.66228264,108850.0,108840.0,0.05104412]
[1756478419704,1.11203376,108850.0,108840.0,0.14179412]
[1756478419924,1.11409376,108850.0,108840.0,0.13978412]
[1756478420127,1.10903376,108850.0,108840.0,0.05104412]
[1756478420349,1.11103376,108850.0,108840.0,0.14179412]
[1756478420491,0.66128264,108850.0,108840.0,0.17830385]
[1756478420696,0.66128264,108850.0,108840.0,0.4045205]
[1756478420697,0.32128264,108850.0,108840.0,0.4045205]
[1756478420948,0.30689976,108850.0,108840.0,0.4045205]
[1756478421238,0.12316067,108850.0,108840.0,0.4045205]
[1756478421447,0.03486435,108850.0,108840.0,0.4045205]
[1756478422459,0.03486435,108850.0,108840.0,0.4015905]
[1756478422658,0.66835456,108850.0,108840.0,0.36508077]
[1756478422866,0.03486435,108850.0,108840.0,0.36508077]
[1756478423067,0.03486435,108850.0,108840.0,0.36801077]
[1756478423275,0.21660344,108850.0,108840.0,0.36508077]
[1756478423683,0.21560344,108850.0,108840.0,0.36908077]
[1756478423851,0.21560344,108850.0,108840.0,0.1853248]
[1756478424072,0.22166344,108850.0,108840.0,0.14579412]
[1756478424247,0.75971088,108850.0,108840.0,0.1843148]
[1756478424446,0.75871088,108850.0,108840.0,0.1843148]
[1756478424646,0.30389976,108850.0,108840.0,0.36608077]
[1756478424853,0.30389976,108850.0,108840.0,0.1823248]
[1756478425053,0.30389976,108850.0,108840.0,0.1833248]
[1756478425296,0.30895976,108850.0,108840.0,0.1813148]
[1756478425519,0.75871088,108850.0,108840.0,0.1813148]
[1756478425727,0.75568088,108850.0,108840.0,0.1843248]
[1756478425883,0.75871088,108850.0,108840.0,0.1823148]
[1756478426291,0.74177801,108850.0,108840.0,0.1833248]
[1756478426517,0.75878588,108850.0,108840.0,0.1803148]
[1756478426957,1.09878588,108850.0,108840.0,0.05003412]
[1756478427330,1.09878588,108850.0,108840.0,0.04903412]
[1756478427654,1.09878588,108850.0,108840.0,0.13978412]
[1756478428095,1.09878588,108850.0,108840.0,0.04903412]
[1756478428724,2.08785767,108850.0,108840.0,0.04304934]
[1756478429026,2.10742292,108850.0,108840.0,0.04304934]
[1756478429241,1.20341359,108850.0,108840.0,0.04304934]
[1756478430074,1.20541359,108850.0,108840.0,0.04304934]
[1756478430643,2.1447442,108850.0,108840.0,0.04304934]
[1756478430847,2.1477442,108850.0,108840.0,0.04304934]
[1756478431232,7.1477442,108850.0,108840.0,0.03407118]
[1756478431654,7.19075607,108850.0,108840.0,0.03407118]
[1756478431866,7.27905239,108850.0,108840.0,0.03407118]
[1756478432070,7.26466993,108850.0,108840.0,0.03407118]
[1756478432296,7.26366993,108850.0,108840.0,0.03407118]
[1756478432746,7.26566993,108850.0,108840.0,1e-08]
[1756478432963,7.30913331,108850.0,108840.0,1e-08]
[1756478433186,7.28213925,108850.0,108840.0,1e-08]
[1756478433404,0.18378974,108820.0,108810.0,0.04611431]
[1756478433631,0.86828044,108820.0,108810.0,0.04611431]
[1756478434470,0.18380663,108810.0,108800.0,0.09075]
[1756478434780,0.75573567,108810.0,108800.0,0.09276]
[1756478435190,0.18382352,108800.0,108790.0,0.11164498]
[1756478435394,0.74735226,108800.0,108790.0,0.11365498]
[1756478435757,0.74735226,108800.0,108790.0,0.11374277]
[1756478435953,0.74735226,108800.0,108790.0,0.04162847]
[1756478436180,0.75241226,108800.0,108790.0,0.13036847]
[1756478436366,0.75241226,108800.0,108790.0,8.779e-05]
[1756478436573,0.75877134,108800.0,108790.0,8.779e-05]
[1756478436894,0.73540986,108800.0,108790.0,8.779e-05]
[1756478437119,0.75872781,108800.0,108790.0,8.779e-05]
[1756478437336,0.74085945,108800.0,108790.0,0.09284779]
[1756478437545,0.29755593,108800.0,108790.0,0.31914889]
[1756478437747,0.29755593,108800.0,108790.0,0.13530847]
[1756478437959,0.11373241,108800.0,108790.0,0.31914889]
[1756478438161,0.29755593,108800.0,108790.0,0.32214889]
[1756478438584,0.02543609,108800.0,108790.0,0.32214889]
[1756478438787,0.02543609,108800.0,108790.0,0.41044521]
[1756478439001,0.01695849,108800.0,108790.0,0.86019633]
[1756478439413,0.01695849,108800.0,108790.0,0.96943147]
[1756478439633,0.19816156,108830.0,108820.0,0.09075]
[1756478439834,0.31825087,108830.0,108820.0,0.27654974]
[1756478440398,0.31825413,108830.0,108820.0,0.31901042]
[1756478440627,0.31825413,108830.0,108820.0,0.36929079]
[1756478440961,0.03982451,108830.0,108820.0,0.36929079]
[1756478441329,0.02543765,108830.0,108820.0,0.81904191]
[1756478441941,0.02643765,108830.0,108820.0,0.81904191]
[1756478442314,0.02643765,108830.0,108820.0,0.36929079]
[1756478442518,0.02643765,108830.0,108820.0,0.81904191]
[1756478442724,0.02543765,108830.0,108820.0,0.36929079]
[1756478442945,0.02543765,108830.0,108820.0,0.82104191]
[1756478443616,0.02543765,108830.0,108820.0,0.37129079]
[1756478443845,0.64267765,108850.0,108830.0,0.23052285]
[1756478444073,0.75562845,108850.0,108840.0,0.27651597]
[1756478444326,0.30587733,108850.0,108840.0,0.27651597]
[1756478444522,0.30384733,108850.0,108840.0,0.27651597]
[1756478444734,0.75865845,108850.0,108840.0,0.09075]
[1756478445142,0.30384733,108850.0,108840.0,0.31604665]
[1756478445767,0.03181143,108850.0,108840.0,0.81900272]
[1756478445979,0.03181143,108850.0,108840.0,0.3692516]
[1756478447453,0.03180302,108850.0,108840.0,0.3663216]
[1756478447882,0.02544249,108850.0,108840.0,0.3692516]
[1756478448103,0.02544249,108850.0,108840.0,0.3722516]
[1756478448317,0.03137519,108860.0,108850.0,0.27448909]
[1756478448525,0.11373611,108860.0,108850.0,0.27649909]
[1756478448886,0.29957832,108860.0,108850.0,0.27649909]
[1756478449033,0.74932944,108860.0,108850.0,0.27448909]
[1756478449242,0.75237944,108860.0,108850.0,0.27448909]
[1756478449439,0.74932944,108860.0,108850.0,0.27663909]
[1756478449668,0.11373611,108860.0,108850.0,0.31616977]
[1756478449871,0.29745832,108860.0,108850.0,0.31616977]
[1756478450276,0.11373611,108860.0,108850.0,0.31616977]
[1756478450755,0.29745832,108860.0,108850.0,0.31616977]
[1756478450967,0.33123708,108860.0,108850.0,0.31616977]
[1756478451120,0.7840382,108860.0,108850.0,0.31401977]
[1756478451299,0.7840382,108860.0,108850.0,0.13028068]
[1756478452957,0.7860382,108860.0,108850.0,0.13128068]
[1756478453486,0.7860382,108860.0,108850.0,0.13028068]
[1756478454656,1.21433452,108860.0,108850.0,0.09075]
[1756478455088,0.18373909,108850.0,108840.0,0.13080641]
[1756478455252,0.75239632,108850.0,108840.0,0.13080641]
[1756478455460,0.75239632,108850.0,108840.0,0.00052573]
[1756478456062,1.09239632,108850.0,108840.0,0.00052573]
[1756478456517,1.09239632,108850.0,108840.0,0.00152573]
[1756478456693,2.01078811,108850.0,108840.0,0.00152573]
[1756478457078,1.78119788,108850.0,108840.0,0.00152573]
[1756478457308,1.04654518,108850.0,108840.0,0.00152573]
[1756478457734,1.96493697,108850.0,108840.0,0.00152573]
[1756478457929,1.04654518,108850.0,108840.0,0.00152573]
[1756478458124,1.06724242,108850.0,108840.0,0.00052573]
[1756478458424,1.98763421,108850.0,108840.0,0.00052573]
[1756478458680,1.98763461,108850.0,108840.0,0.00052573]
[1756478458899,2.09686975,108850.0,108840.0,0.00052573]
[1756478459103,7.09686939,108850.0,108840.0,0.00052573]
[1756478460010,7.13753993,108850.0,108840.0,0.00052573]
[1756478460636,2.04924361,108850.0,108840.0,0.00052573]
[1756478460841,1.13085182,108850.0,108840.0,0.00052573]
[1756478461047,2.04924361,108850.0,108840.0,0.00052573]
[1756478461254,7.04724361,108850.0,108840.0,0.00052573]
[1756478461461,7.05024361,108850.0,108840.0,0.00052573]
[1756478461695,7.13853993,108850.0,108840.0,1e-08]
[1756478461953,7.15400925,108850.0,108840.0,1e-08]
[1756478462161,5.62549134,108850.0,108840.0,1e-08]
[1756478462379,0.73524246,108850.0,108840.0,1e-08]
[1756478462595,0.72086034,108850.0,108840.0,1e-08]
[1756478462812,1.06086034,108850.0,108840.0,1e-08]
[1756478463233,1.05781034,108850.0,108840.0,0.00215001]
[1756478463447,1.06086034,108850.0,108840.0,1e-08]
[1756478463663,0.71781034,108850.0,108840.0,0.00215001]
[1756478463838,0.71481034,108850.0,108840.0,0.09290001]
[1756478464261,0.71688382,108850.0,108840.0,0.09290001]
[1756478464638,0.70976382,108850.0,108840.0,0.09290001]
[1756478464856,1.05488382,108850.0,108840.0,0.09290001]
[1756478465466,1.05276382,108850.0,108840.0,0.27665598]
[1756478465665,0.2630127,108850.0,108840.0,0.37684792]
[1756478465872,0.0314666,108850.0,108840.0,0.82659904]
[1756478466292,0.0314666,108850.0,108840.0,0.86772461]
[1756478467065,0.0304666,108850.0,108840.0,0.95602093]
[1756478467275,0.04702758,108890.0,108880.0,0.31396914]
[1756478467475,0.0070472,108890.0,108880.0,0.36902508]
[1756478467674,0.00704706,108890.0,108880.0,0.36902508]
[1756478467886,0.19071865,108890.0,108880.0,0.36902508]
[1756478468100,0.00704706,108890.0,108880.0,0.36902508]
[1756478468517,0.00704706,108890.0,108880.0,0.8187762]
[1756478468717,0.00804706,108890.0,108880.0,0.8187762]
[1756478468916,0.00804706,108890.0,108880.0,0.92801134]
[1756478469133,0.00804706,108890.0,108880.0,1.29937652]
[1756478469337,0.0016776,108890.0,108880.0,1.33975441]
[1756478469565,0.0016776,108890.0,108880.0,1.38875441]
[1756478469741,0.0016776,108890.0,108880.0,0.88900329]
[1756478469948,0.0016776,108890.0,108880.0,1.33875441]
[1756478470264,0.0036776,108890.0,108880.0,1.33875441]
[1756478470693,0.0036776,108890.0,108880.0,0.88900329]
[1756478470895,0.0036776,108890.0,108880.0,0.85763811]
[1756478471123,0.0026776,108890.0,108880.0,0.83669929]
[1756478471327,0.00904445,108890.0,108880.0,0.74594929]
[1756478471532,0.00904445,108890.0,108880.0,0.74794929]
[1756478471956,0.00904445,108890.0,108880.0,0.74594929]
[1756478472156,0.00904445,108890.0,108880.0,0.45716861]
[1756478472421,0.00904445,108890.0,108880.0,0.49869929]
[1756478472625,0.00904445,108890.0,108880.0,0.96938923]
[1756478472837,0.00904445,108890.0,108880.0,0.97638923]
[1756478473040,0.0026776,108890.0,108880.0,0.97638923]
[1756478473447,0.0006776,108890.0,108880.0,0.51963811]
[1756478473859,0.0006776,108890.0,108880.0,0.52263811]
[1756478474272,0.00704001,108890.0,108880.0,0.50169929]
[1756478474847,0.00704001,108890.0,108880.0,0.50569929]
[1756478475074,0.00704001,108890.0,108880.0,0.50769929]
[1756478475279,0.00704001,108890.0,108880.0,0.50455929]
[1756478475635,0.00704001,108890.0,108880.0,0.50255929]
[1756478475805,0.00704001,108890.0,108880.0,0.50569929]
[1756478476006,0.00704001,108890.0,108880.0,0.96738923]
[1756478476245,0.0006776,108890.0,108880.0,0.51863811]
[1756478476480,0.0006776,108890.0,108880.0,0.52163811]
[1756478476690,0.0006776,108890.0,108880.0,0.51849811]
[1756478476895,0.00703941,108890.0,108880.0,0.52163811]
[1756478477038,0.00703941,108890.0,108880.0,0.49755929]
[1756478477242,0.00703941,108890.0,108880.0,0.31551297]
[1756478477470,0.00703941,108890.0,108880.0,0.41126297]
[1756478478018,0.00703941,108890.0,108880.0,0.86315409]
[1756478478424,0.00703807,108890.0,108880.0,0.97438923]
[1756478478708,0.0006776,108890.0,108880.0,0.97438923]
[1756478479273,0.0006776,108890.0,108880.0,0.52763811]
[1756478479476,0.01551669,108890.0,108880.0,0.52763811]
[1756478479675,0.03247588,108890.0,108880.0,0.97238923]
[1756478479958,0.03247588,108890.0,108880.0,0.41526297]
[1756478480164,0.67102859,108890.0,108880.0,0.14028068]
[1756478480320,0.03247588,108890.0,108880.0,0.32594914]
[1756478480525,0.21614747,108890.0,108880.0,0.32594914]
[1756478480732,0.21813747,108890.0,108880.0,0.32396914]
[1756478480930,0.67102859,108890.0,108880.0,0.01]
[1756478481127,0.75932491,108890.0,108880.0,0.13828068]
[1756478481597,0.75932491,108890.0,108880.0,0.13928068]
[1756478481972,0.67102859,108890.0,108880.0,0.13928068]
[1756478482176,0.67102859,108890.0,108880.0,0.04753068]
[1756478482386,0.18368846,108880.0,108870.0,0.03953068]
[1756478482530,0.66837786,108880.0,108870.0,0.34142779]
[1756478482729,0.03179828,108880.0,108870.0,0.34340779]
[1756478484038,0.03179828,108880.0,108870.0,0.34640779]
[1756478484214,0.05851073,108880.0,108870.0,0.34640779]
[1756478484907,0.05851073,108880.0,108870.0,0.34740779]
[1756478485280,0.22065194,108880.0,108870.0,0.34542779]
[1756478485717,0.67040306,108880.0,108870.0,0.13428068]
[1756478486352,0.67040306,108880.0,108870.0,0.31798601]
[1756478487195,0.24762046,108880.0,108870.0,0.31798601]
[1756478487355,0.063932,108880.0,108870.0,0.31798601]
[1756478487925,0.2306426,108880.0,108870.0,0.31798601]
[1756478488072,0.2306426,108880.0,108870.0,0.37327332]
[1756478488904,0.22215443,108880.0,108870.0,0.28252332]
[1756478489109,0.23064424,108880.0,108870.0,0.37327332]
[1756478489558,0.23064424,108880.0,108870.0,0.18956799]
[1756478489771,0.23064424,108880.0,108870.0,0.28152332]
[1756478489997,0.23064424,108880.0,108870.0,0.37227332]
[1756478490232,0.04381578,108880.0,108870.0,0.37225332]
[1756478490461,0.20053572,108880.0,108870.0,0.37027332]
[1756478490696,0.20367572,108880.0,108870.0,0.37027332]
[1756478490918,0.20053572,108880.0,108870.0,0.37425332]
[1756478491602,0.20367572,108880.0,108870.0,0.37227332]
[1756478491813,0.65342684,108880.0,108870.0,0.18856799]
[1756478492059,0.65342684,108880.0,108870.0,0.28052332]
[1756478492287,0.65342684,108880.0,108870.0,0.09681799]
[1756478492526,0.65342684,108880.0,108870.0,0.04153068]
[1756478492762,0.01485726,108880.0,108870.0,0.32026232]
[1756478492990,0.01998726,108880.0,108870.0,0.31398601]
[1756478493216,0.20367572,108880.0,108870.0,0.31398601]
[1756478493429,0.20367572,108880.0,108870.0,0.31696601]
[1756478493648,0.20367572,108880.0,108870.0,0.37215132]
[1756478494096,0.20367572,108880.0,108870.0,0.37017132]
[1756478494334,0.20367572,108880.0,108870.0,0.37115132]
[1756478494335,0.19854572,108880.0,108870.0,0.37115132]
[1756478494557,0.04430667,108880.0,108870.0,0.37115132]
[1756478494777,0.04430667,108880.0,108870.0,0.37315132]
[1756478494996,0.23113513,108880.0,108870.0,0.18746599]
[1756478495250,0.68088625,108880.0,108870.0,0.37117132]
[1756478495464,0.23113513,108880.0,108870.0,0.37315132]
[1756478495686,0.04430667,108880.0,108870.0,0.37315132]
[1756478495962,0.01684726,108880.0,108870.0,0.37415132]
[1756478496410,0.20367572,108880.0,108870.0,0.37415132]
[1756478496626,0.01998726,108880.0,108870.0,0.37415132]
[1756478496847,0.23071288,108880.0,108870.0,0.37217132]
[1756478497070,0.20367572,108880.0,108870.0,0.37217132]
[1756478497510,0.23159818,108880.0,108870.0,0.37217132]
[1756478497936,0.23159818,108880.0,108870.0,0.04153068]
[1756478497937,0.6813493,108880.0,108870.0,0.04153068]
[1756478498155,0.78930343,108880.0,108870.0,0.002]
[1756478498621,0.78930343,108880.0,108870.0,0.09275]
[1756478499285,0.24811599,108880.0,108870.0,0.32026232]
[1756478499500,0.02792246,108880.0,108870.0,0.31596601]
[1756478499739,0.04286261,108880.0,108870.0,0.36693459]
[1756478499966,0.01494015,108880.0,108870.0,0.36693459]
[1756478500404,0.01494015,108880.0,108870.0,0.36996459]
[1756478500654,0.01494015,108880.0,108870.0,0.82071571]
[1756478500867,0.01494015,108880.0,108870.0,0.37096459]
[1756478501075,0.01494015,108880.0,108870.0,0.36793459]
[1756478501289,0.01494015,108880.0,108870.0,0.36593459]
[1756478501538,0.65350973,108880.0,108870.0,0.09075]
[1756478501795,0.65350973,108880.0,108870.0,0.03953068]
[1756478501796,0.6813886,108880.0,108870.0,0.03953068]
[1756478502005,0.18370533,108870.0,108860.0,0.26424266]
[1756478502211,0.20178548,108870.0,108860.0,0.03953068]
[1756478502419,0.6535266,108870.0,108860.0,0.03953068]
[1756478502640,0.6535266,108870.0,108860.0,0.24557578]
[1756478502877,0.6535266,108870.0,108860.0,0.06185357]
[1756478503317,0.6535266,108870.0,108860.0,0.03953068]
[1756478503559,0.6535266,108870.0,108860.0,0.22525289]
[1756478503782,0.6535266,108870.0,108860.0,0.04153068]
[1756478504000,0.6535266,108870.0,108860.0,0.22525289]
[1756478504233,0.01494015,108870.0,108860.0,0.31798289]
[1756478504458,0.20377548,108870.0,108860.0,0.31600289]
[1756478504675,0.20377548,108870.0,108860.0,0.002]
[1756478504676,1.15246292,108870.0,108860.0,0.002]
[1756478504896,1.17215,108870.0,108860.0,0.002]
[1756478505106,6.17215,108870.0,108860.0,0.002]
[1756478505322,7.19977693,108870.0,108860.0,0.002]
[1756478505545,6.28138514,108870.0,108860.0,0.003]
[1756478505969,7.19977693,108870.0,108860.0,0.002]
[1756478506179,0.18373909,108850.0,108840.0,1e-08]
[1756478506397,1.64658124,108850.0,108840.0,1e-08]
[1756478506611,1.65171124,108850.0,108840.0,1e-08]
[1756478506813,2.08000756,108850.0,108840.0,1e-08]
[1756478507022,2.11147469,108850.0,108840.0,1e-08]
[1756478507225,2.02317837,108850.0,108840.0,1e-08]
[1756478507634,2.02317837,108850.0,108840.0,0.00200001]
[1756478509062,0.65503546,108850.0,108840.0,0.00300001]
[1756478509279,1.10478658,108850.0,108840.0,0.00300001]
[1756478509482,1.11332125,108850.0,108840.0,0.00300001]
[1756478510109,1.11329163,108850.0,108840.0,0.00300001]
[1756478510539,1.08129896,108850.0,108840.0,0.00300001]
[1756478510753,1.11330193,108850.0,108840.0,0.00300001]
[1756478511435,0.66041081,108850.0,108840.0,0.27959598]
[1756478511653,1.0957795,108850.0,108840.0,0.3298858]
[1756478512079,1.0957795,108850.0,108840.0,0.14612983]
[1756478512283,1.0957795,108850.0,108840.0,0.09584001]
[1756478512506,1.0958495,108850.0,108840.0,0.09584001]
[1756478512950,1.0989095,108850.0,108840.0,0.09375001]
[1756478513168,2.01730129,108850.0,108840.0,0.00300001]
[1756478513382,2.09706348,108850.0,108840.0,0.00300001]
[1756478513603,2.00876716,108850.0,108840.0,0.00300001]
[1756478513820,1.09037537,108850.0,108840.0,0.09375001]
[1756478514037,2.00876716,108850.0,108840.0,0.00300001]
[1756478515159,1.10475774,108850.0,108840.0,0.00300001]
[1756478515601,1.10475774,108850.0,108840.0,0.00200001]
[1756478516010,1.10575774,108850.0,108840.0,1e-08]
[1756478516415,1.10675774,108850.0,108840.0,1e-08]
[1756478516603,1.10575774,108850.0,108840.0,1e-08]
[1756478516992,0.65600662,108850.0,108840.0,1e-08]
[1756478517203,1.10576191,108850.0,108840.0,1e-08]